Cogmind - Beta 14 @@@ ROGUE MODE // 2024.08.13 @ 17:05:05 Player: honey223 Result: Self-destructed Performance ------------- Evolutions (5) 2500 Regions Visited (5) 1000 Robots Destroyed (40) 200 Value Destroyed (924) 924 Prototype IDs (20) 400 Alien Tech Used (0) 0 Bonus (300) 300 TOTAL SCORE: 5324 Bonus ------- Registered with UFD 300 Cogmind --------- Core Integrity 1000/1000 Matter 190/300 Energy 330/330 System Corruption 0% Temperature Cool (0) Movement Walking (330) Ox3 Location -5/Factory Parts ------- > --- POWER (2) -------- Light Deuterium Engine Improved Deuterium Engine > --- PROPULSION (4) --- Carbon-fiber Leg Myomer Leg Myomer Leg (fused) Armored Wheel > --- UTILITY (7) ------ Humpback Improved Sensor Array Experimental Signal Interpreter Hardened Medium Armor Plating Improved Medium Armor Plating Makeshift System Shield > --- WEAPON (4) ------- Overtuned Pulse Rifle Ion Cannon Heavy Battle Rifle Improved Datajack > --- INVENTORY (35) --- Nuclear Core Medium Treads Scrap Suit Large Storage Unit Large Matter Pod (150) Improved Salvage Targeting Computer Kinecellerator Transmission Jammer Advanced ECM Suite Thermal Shield Hardlight Generator Scrapoid Pod Ion Cannon Grenade Launcher Heavy Rocket Launcher Heavy Missile Launcher CPS Tube (2) CPS Tube (2) CPS Tube (2) CPS Tube (2) Great Maul Botcube Peak State ------------ > --- POWER ------------ Light Deuterium Engine Improved Deuterium Engine > --- PROPULSION ------- Carbon-fiber Leg Myomer Leg Myomer Leg Armored Wheel > --- UTILITY ---------- Humpback Improved Sensor Array Experimental Signal Interpreter Hardened Medium Armor Plating Improved Medium Armor Plating Makeshift System Shield > --- WEAPON ----------- Overtuned Pulse Rifle Ion Cannon Heavy Battle Rifle Improved Datajack > --- INVENTORY -------- Nuclear Core Medium Treads Scrap Suit Large Storage Unit Large Matter Pod Improved Salvage Targeting Computer Kinecellerator Transmission Jammer Advanced ECM Suite Thermal Shield Hardlight Generator Scrapoid Pod Ion Cannon Grenade Launcher Heavy Rocket Launcher Heavy Missile Launcher CPS Tube CPS Tube CPS Tube CPS Tube Great Maul Botcube [Rating: 71] Favorites ----------- Power Ion Engine Engine Ion Engine Propulsion Myomer Leg Treads Light Treads Leg Myomer Leg Wheel Armored Wheel Utility Humpback Device Seismic Detector Storage Humpback Processor Experimental Signal Interpreter Hackware Makeshift System Shield Protection Hardened Medium Armor Plating Weapon Improved Datajack Energy Gun Overtuned Pulse Rifle Energy Cannon Beam Cannon Ballistic Gun Assault Rifle Ballistic Cannon Battle Cannon Launcher Grenade Launcher Impact Weapon Hammer Special Melee Weapon Improved Datajack Build | -11 -10 -10 -7 -7 -5 ------- Run | Yrd Mat Sub Rec Scr Fac Slots Evolved 10 | . . . . . 10 Power 1 | . . . . . 1 Propulsion 2 | . . . . . 2 Utility 5 | . . . . . 5 Weapon 2 | . . . . . 2 Parts Attached 54 | 7 14 11 5 6 11 Power 6 | 1 2 1 . 1 1 Engine 6 | 1 2 1 . 1 1 Core . | . . . . . . Reactor . | . . . . . . Propulsion 10 | 2 2 2 1 1 2 Treads 3 | 2 1 . . . . Leg 6 | . 1 2 1 . 2 Wheel 1 | . . . . 1 . Hover . | . . . . . . Flight . | . . . . . . Utility 18 | 2 3 1 4 3 5 Device 2 | 1 . . . . 1 Storage 7 | 1 1 . 3 2 . Processor 1 | . . . . . 1 Hackware 1 | . . . . . 1 Protection 7 | . 2 1 1 1 2 Artifact . | . . . . . . Weapon 20 | 2 7 7 . 1 3 Energy Gun 1 | . . . . . 1 Energy Cannon 3 | . 2 . . . 1 Ballistic Gun 9 | 2 3 3 . . 1 Ballistic Cannon 1 | . . 1 . . . Launcher 3 | . 1 2 . . . Special Weapon . | . . . . . . Impact Weapon 2 | . 1 1 . . . Slashing Weapon . | . . . . . . Piercing Weapon . | . . . . . . Special Melee Weapon 1 | . . . . 1 . Unidentified Prototypes . | . . . . . . Parts Lost 3 | . 3 . . . . Power 1 | . 1 . . . . Propulsion 1 | . 1 . . . . Utility . | . . . . . . Weapon 1 | . 1 . . . . Highest Loss Streak 1 | . 1 . . . . To Critical Strikes . | . . . . . . Average Slot Usage (%) 79 | . 99 85 93 72 82 Engine 13 | . 14 13 14 14 11 Treads 5 | . 25 8 . . . Leg 18 | . 2 19 28 21 17 Wheel 4 | . . . . 6 5 Storage 12 | . 14 . 11 14 5 Protection 7 | . 10 14 12 5 8 Ballistic Gun 6 | . 25 10 12 . 3 Ballistic Cannon 2 | . . 12 12 . . Special Melee Weapon 6 | . . . . 10 5 Peak Build Rating 71 | 7 8 23 24 31 71 Average Rating 22 | 5 7 18 23 27 65 On Entrance 14 | . 7 8 23 20 31 Naked Turns . | . . . . . . Heaviest Build 245 | 15 33 33 38 211 245 Greatest Support 65 | 40 40 50 50 50 65 Greatest Overweight (x) 17 | 3 1 1 . 17 3 Average Overweight (x) 3 | . . . . 5 3 Largest Inventory Capacity 35 | 8 15 15 15 35 35 Average Capacity 21 | 7 14 5 8 27 35 Most Carried 35 | 8 15 15 11 35 34 Average Carried 18 | 5 13 5 6 23 25 Final Capacity 35 | 8 15 5 15 35 35 Final Carried 35 | 8 15 4 11 35 24 Class Distribution -------------------- 41% | Hauler-Mutant 29% | Mutant 28% | Commander-Mutant Dominant Class ---------------- Mutant | -10/Materials Mutant | -10/Subcaves Commander-Mutant | -7/Recycling Hauler-Mutant | -7/Scraptown Derelict-Tank | -5/Factory Resources | -11 -10 -10 -7 -7 -5 ----------- Run | Yrd Mat Sub Rec Scr Fac Matter Collected 1696 | 324 519 406 316 131 . Remotely . | . . . . . . Salvage Created 1414 | 145 602 107 560 . . Parts 85 | 12 46 9 18 . . Haulers Intercepted . | . . . . . . Recyclers Shooed 6 | 1 . . 5 . . Parts Field Recycled . | . . . . . . Retrieved Matter . | . . . . . . Parts Self-Destructed 9 | . . 9 . . . Prevented . | . . . . . . Kills | -11 -10 -10 -7 -7 -5 ------- Run | Yrd Mat Sub Rec Scr Fac Combat Hostiles Destroyed 26 | . 16 6 4 . . Guns 18 | . 13 3 2 . . Cannons 6 | . 1 3 2 . . AOE 2 | . 2 . . . . Classes Destroyed 11 | 2 4 3 2 . . Worker 1 | . 1 . . . . Tunneler 3 | 3 . . . . . Recycler 5 | 1 . . 4 . . Turret 2 | . . 2 . . . Watcher 3 | . 3 . . . . Swarmer 9 | . 6 3 . . . Grunt 11 | . 10 . 1 . . Protector 1 | . . . 1 . . Sentry 2 | . . . 2 . . Artisan 1 | . . 1 . . . Subdweller 3 | . . 3 . . . Best Kill Streak 6 | 2 6 3 2 . . Combat Bots Only 6 | . 6 3 2 . . Max Kills in Single Turn 1 | 1 1 1 1 . . Gunslinging . | . . . . . . Exploded 1 | . 1 . . . . Melee . | . . . . . . Uniques/NPCs Destroyed . | . . . . . . Combat | -11 -10 -10 -7 -7 -5 -------- Run | Yrd Mat Sub Rec Scr Fac Hostile Shots Fired 207 | . 81 92 32 . 2 Missed 71 | . 14 42 13 . 2 Damage Taken 1338 | . 695 466 177 . . Core 114 | . 86 18 10 . . Absorbed by Shields 10 | . . . 10 . . Core Remaining (%) 77 | 100 . . . 54 . Volleys Fired 137 | 9 70 30 28 . . Largest 2 | 2 2 2 2 . . Hottest 80 | 40 80 64 64 . . Shots Fired 256 | 18 135 46 57 . . Gun 190 | 18 125 19 28 . . Cannon 57 | . 8 20 29 . . Launcher 9 | . 2 7 . . . Special . | . . . . . . Kinetic 239 | 18 125 39 57 . . Thermal 8 | . 8 . . . . Explosive 9 | . 2 7 . . . Electromagnetic . | . . . . . . Robot Hit Streak 16 | 4 11 13 16 . . Robot Miss Streak 3 | 2 2 2 3 . . Penetration Max . | . . . . . . Secondary Targets 1 | . 1 . . . . Max Gunslinging Chain 1 | . 1 . . . . Shots Hit Robots 179 | 8 93 33 43 2 . Core Hits 78 | 5 35 18 20 . . Critical Kills 1 | . 1 . . . . Critical Parts Destroyed 1 | . 1 . . . . Critical Strikes 4 | . 2 . 2 . . Destroy 2 | . 2 . . . . Blast 2 | . . . 2 . . Melee Attacks 25 | . 6 15 . 4 . Impact 21 | . 6 15 . . . Slashing . | . . . . . . Piercing . | . . . . . . Sneak Attacks 3 | . . 2 . 1 . Combat Hostiles . | . . . . . . Follow-up Attacks . | . . . . . . Damage Inflicted 2805 | 100 1133 778 794 . . Guns 1493 | 100 907 187 299 . . Cannons 920 | . 111 314 495 . . Explosions 325 | . 110 215 . . . Melee 62 | . . 62 . . . Ramming 5 | . 5 . . . . Kinetic 2302 | 100 907 501 794 . . Thermal 111 | . 111 . . . . Explosive 325 | . 110 215 . . . Electromagnetic . | . . . . . . Impact 62 | . . 62 . . . Slashing . | . . . . . . Piercing . | . . . . . . Highest Corruption 9 | . 9 9 9 9 . Average Corruption 7 | . 3 9 9 9 . Corruption Purged . | . . . . . . Corruption Blocked . | . . . . . . Effects 86 | . 20 28 28 10 . Message Errors 22 | . 6 7 6 3 . Matter Fused 18 | . 4 5 7 2 . Heat Flow Errors 9 | . 2 4 1 2 . Energy Discharges 10 | . 2 4 4 . . Parts Rejected 2 | . . 1 1 . . Parts Fused 1 | . . . . 1 . Data Loss (minor) 6 | . 3 . 2 1 . Data Loss (major) 8 | . 1 4 2 1 . Misfires 3 | . 1 . 2 . . Alerts 2 | . . . 2 . . Weapon Failures 5 | . 1 3 1 . . Overload Shots . | . . . . . . Overflow Damage 43 | . 8 32 3 . . Projectiles 11 | . 8 . 3 . . Explosions . | . . . . . . Melee 32 | . . 32 . . . Knockbacks 9 | . . 2 7 . . Impact . | . . . . . . Kinetic 9 | . . 2 7 . . Secondary . | . . . . . . Self-Inflicted Damage . | . . . . . . Shots . | . . . . . . Rammed 1 | . 1 . . . . Targets Rammed 1 | . 1 . . . . Kicked . | . . . . . . Crushed . | . . . . . . Highest Temperature 320 | . 320 187 162 213 . Average Temperature 72 | . 87 82 44 102 . Received Heat Transfer 564 | . 270 225 69 . . Effects 1 | . 1 . . . . Energy Bleed 1 | . 1 . . . . Siege Activations . | . . . . . . Robots Corrupted . | . . . . . . Combat Hostiles . | . . . . . . Parts Fried . | . . . . . . Impact Corruptions 1 | . . 1 . . . Robots Melted . | . . . . . . Combat Hostiles . | . . . . . . Parts Melted 1 | . 1 . . . . Heat Transferred 222 | . 222 . . . . Parts Sabotaged . | . . . . . . Parts Stolen . | . . . . . . Parts Stripped . | . . . . . . Power Chain Reactions . | . . . . . . Alert | -11 -10 -10 -7 -7 -5 ------- Run | Yrd Mat Sub Rec Scr Fac Peak Influence 246 | 20 246 . 162 . . Initial 84 | . 13 . 84 . . Average 108 | 8 136 . 83 . . Maximum Alert Level 1 | . 1 . . . . Low Security (%) 79 | 100 66 . 100 . 100 Level 1 20 | . 33 . . . . Level 2 . | . . . . . . Level 3 . | . . . . . . Level 4 . | . . . . . . Level 5 . | . . . . . . High Security . | . . . . . . Max Security . | . . . . . . Squads Dispatched 3 | . 3 . . . . Investigation 3 | . 3 . . . . Extermination . | . . . . . . Reinforcement . | . . . . . . Assault . | . . . . . . Garrison . | . . . . . . Intercept . | . . . . . . Searches Triggered . | . . . . . . Construction Impeded . | . . . . . . Haulers Reinforced . | . . . . . . Active Scanning Responses . | . . . . . . Cargo Convoy Interrupts . | . . . . . . Stealth | -11 -10 -10 -7 -7 -5 --------- Run | Yrd Mat Sub Rec Scr Fac Distress Signals . | . . . . . . Communications Jammed . | . . . . . . Distress Signals . | . . . . . . Times Spotted 52 | . 21 23 4 . 4 Peak Tracking Total 7 | . 6 7 2 . 4 Tactical Retreats 3 | . . 3 . . . Traps | -11 -10 -10 -7 -7 -5 ------- Run | Yrd Mat Sub Rec Scr Fac Traps Triggered 8 | . 8 . . . . Indirectly . | . . . . . . Trap Hack Attempts . | . . . . . . Triggered . | . . . . . . Disarmed . | . . . . . . Reprogrammed . | . . . . . . Reused . | . . . . . . Traps Extracted . | . . . . . . Installed . | . . . . . . Triggered . | . . . . . . Machines | -11 -10 -10 -7 -7 -5 ---------- Run | Yrd Mat Sub Rec Scr Fac Machines Disabled 4 | . 1 3 . . . Max in Single Turn 2 | . 1 2 . . . Garrison Access 1 | . . . . . 1 Machines Repaired . | . . . . . . Machines Dismantled . | . . . . . . Machines Sabotaged . | . . . . . . Overloaded Fab Kills . | . . . . . . Hacking | -11 -10 -10 -7 -7 -5 --------- Run | Yrd Mat Sub Rec Scr Fac Machines Accessed 26 | . 11 1 5 8 1 Terminals 10 | . 8 . 2 . . Fabricators . | . . . . . . Repair Stations 1 | . 1 . . . . Recycling Units 3 | . 2 . 1 . . Scanalyzers . | . . . . . . Garrison Access 1 | . . . . . 1 Total Hacks 98 | . 33 3 17 41 4 Successful 73 | . 15 3 13 41 1 Failed 25 | . 18 . 4 . 3 Catastrophic 7 | . 3 . 3 . 1 Database Lockouts . | . . . . . . Manual 18 | . 18 . . . . Terminals 31 | . 29 . 2 . . Fabricators . | . . . . . . Repair Stations 1 | . 1 . . . . Recycling Units 5 | . 3 . 2 . . Scanalyzers . | . . . . . . Garrison Access 4 | . . . . . 4 Terminal Hacks 67 | . 10 3 13 41 . Record 56 | . . 3 13 40 . Part Schematic 1 | . 1 . . . . Robot Analysis 3 | . 3 . . . . Prototype ID Bank 4 | . 4 . . . . Hauler Manifests 2 | . 2 . . . . Derelict Proto ID Bank 1 | . . . . 1 . Fabricator Hacks . | . . . . . . Repair Station Hacks . | . . . . . . Recycling Unit Hacks 2 | . 2 . . . . Retrieve Matter 2 | . 2 . . . . Scanalyzer . | . . . . . . Garrison Access Hacks 1 | . . . . . 1 Seal Access 1 | . . . . . 1 Unauthorized Hacks 3 | . 3 . . . . Terminals 2 | . 2 . . . . Botnet 2 | . 2 . . . . Fabricators . | . . . . . . Repair Stations . | . . . . . . Recycling Units 1 | . 1 . . . . Tunnel 1 | . 1 . . . . Scanalyzers . | . . . . . . Garrison Access . | . . . . . . Data Cores Recovered . | . . . . . . Used . | . . . . . . Hacking Detections 13 | . 10 . 3 . . Full Trace Events 2 | . 1 . 1 . . Feedback Events . | . . . . . . Feedback Blocked . | . . . . . . Robot Schematics Acquired . | . . . . . . Robots Built . | . . . . . . Authchips . | . . . . . . Time . | . . . . . . Total Robot Build Rating . | . . . . . . Part Schematics Acquired 1 | . 1 . . . . Parts Built . | . . . . . . Authchips . | . . . . . . Time . | . . . . . . Total Part Build Rating . | . . . . . . Parts Repaired . | . . . . . . Time . | . . . . . . Parts Recycled . | . . . . . . Recycled Matter . | . . . . . . Retrieved Matter 188 | . 188 . . . . Retrieved Components . | . . . . . . Parts Scanalyzed . | . . . . . . Part Schematics Acquired . | . . . . . . Parts Damaged . | . . . . . . Bothacking | -11 -10 -10 -7 -7 -5 ------------ Run | Yrd Mat Sub Rec Scr Fac Used RIF Installer . | . . . . . . Robots Hacked 1 | . . . . 1 . Non-combat . | . . . . . . Combat 1 | . . . . 1 . Robot Hacks Applied 1 | . . . . 1 . parse_system 1 | . . . . 1 . Relay Couplers Released 3 | . . . . . 3 Machine Destruction 3 | . . . . . 3 Fabnet Peak Effective % . | . . . . . . Robots Rewired 5 | . . . 5 . . Allies Hacked . | . . . . . . Hacks Repelled . | . . . . . . Allies | -11 -10 -10 -7 -7 -5 -------- Run | Yrd Mat Sub Rec Scr Fac Total Allies 5 | . . . 5 . . Largest Group 5 | . . . 5 4 4 Highest-Rated Group 120 | . . . 120 108 108 Highest-Rated Ally 40 | . . . 40 40 40 Total Orders . | . . . . . . Ally Attacks 8 | . . . 7 . 1 Total Damage 221 | . . . 190 . 31 Kills 1 | . . . 1 . . Allies Corrupted . | . . . . . . Allies Melted . | . . . . . . Intel | -11 -10 -10 -7 -7 -5 ------- Run | Yrd Mat Sub Rec Scr Fac Robot Analysis Total 3 | . 3 . . . . Derelict Logs Recovered . | . . . . . . Drone Launches . | . . . . . . Drone Recoveries . | . . . . . . Exploration | -11 -10 -10 -7 -7 -5 ------------- Run | Yrd Mat Sub Rec Scr Fac Turns Passed 8834 | 210 1496 705 699 5686 38 Spaces Moved 4227 | 103 684 397 390 2645 8 Core 10 | 10 . . . . . Treads 885 | 93 684 108 . . . Legs 2576 | . . 289 390 1889 8 Wheels 756 | . . . . 756 . Hover . | . . . . . . Flight . | . . . . . . Fastest Speed 50 | 50 160 120 120 120 330 Average Speed 185 | 158 171 131 120 208 330 Slowest Speed 400 | 200 240 190 120 400 330 Overloaded Moves . | . . . . . . Propulsion Burnouts . | . . . . . . Robots Hopped . | . . . . . . Cave-ins Triggered . | . . . . . . Exploration Rate (%) 58 | 7 88 26 76 93 . Regions Visited 5 Branch Regions 3 Pre-discovered Areas 5 | . 1 1 . 3 . Known Exits Taken . | . . . . . . Unknown Exits Taken 5 | 1 1 1 1 1 . Scrap Searched 7 | . . 2 . 5 . Spaces Dug 4 | . 4 . . . . Terrain Destroyed 19 | . 8 9 2 . . Melee 4 | . 4 . . . . Projectile 2 | . . . 2 . . AOE 13 | . 4 9 . . . Terrain Rammed . | . . . . . . Walls Destroyed . | . . . . . . Machines Disabled . | . . . . . . Actions | -11 -10 -10 -7 -7 -5 --------- Run | Yrd Mat Sub Rec Scr Fac Total 4936 | 130 875 507 569 2836 19 Wait 271 | . 78 37 43 113 . Move 4222 | 102 683 396 389 2644 8 Hop . | . . . . . . Pick Up 85 | 12 14 3 7 49 . Fast Attach 13 | 3 2 4 3 1 . Attach 21 | 4 3 1 1 1 11 Detach 2 | . . . 2 . . Swap 20 | . 9 6 1 4 . Drop 41 | . 9 8 4 20 . Fire 137 | 9 70 30 28 . . Melee 25 | . 6 15 . 4 . Ram . | . . . . . . Kick . | . . . . . . Crush 1 | . 1 . . . . Escape Stasis . | . . . . . . Rewire 91 | . . . 91 . . Trap . | . . . . . . Miscellaneous 7 | . . 7 . . . Route ------- -11/Scrapyard -10/Materials (discovered 5 exits: [*Mat x3] / [*Min] / *Sub) -10/Subcaves (discovered 3 exits: [*Mat x2] / *Rec) -7/Recycling (discovered 2 exits: *Fac / *Scr) -7/Scraptown (discovered 2 exits: *Fac x2) -5/Factory History --------- Turn | Location | Event 17 | -11/Scrapyard | Discovered new exit (range 16) 211 | -11/Scrapyard | Entered Materials 328 | -10/Materials | Build established: Mutant 794 | -10/Materials | Discovered new exit (range 16) 1031 | -10/Materials | Discovered new exit (range 16) 1072 | -10/Materials | Discovered new exit (range 15) 1502 | -10/Materials | Discovered new exit (range 3) 1686 | -10/Materials | Discovered new exit (range 14) 1707 | -10/Materials | Entered Subcaves 1884 | -10/Subcaves | Ambushed by swarm of Subdwellers 1888 | -10/Subcaves | Ambushed by Subdwellers from Twisted Machinery 1951 | -10/Subcaves | Discovered new exit (range 12) 1978 | -10/Subcaves | Visited Clippyterm 1982 | -10/Subcaves | Learned location of Deep Caves (-6) 2029 | -10/Subcaves | Discovered new exit (range 12) 2085 | -10/Subcaves | Shifting Twisted Machinery released Sub. Laser 2087 | -10/Subcaves | Shifting Twisted Machinery released Battle Rifle 2271 | -10/Subcaves | Discovered new exit (range 14) 2412 | -10/Subcaves | Entered Recycling 2413 | -7/Recycling | Met a Zionite searching for Scraptown 2958 | -7/Recycling | Discovered new exit (range 16) 3052 | -7/Recycling | Scanned before Scraplab entrance 3086 | -7/Recycling | Discovered new exit (range 3) 3111 | -7/Recycling | Entered Scraptown 3111 | -7/Scraptown | Accompanied by 4 allies 3231 | -7/Scraptown | Build established: Commander-Mutant 3437 | -7/Scraptown | Visited Spacefarers 3461 | -7/Scraptown | Visited Red Mages 3503 | -7/Scraptown | System corruption cleaned by C-Scrubber 3584 | -7/Scraptown | Visited The Evicted 3826 | -7/Scraptown | Discovered new exit (range 5) 3944 | -7/Scraptown | Visited Cave Peace 3982 | -7/Scraptown | Visited Cyclists 4024 | -7/Scraptown | Visited UFD Registry 4024 | -7/Scraptown | Registered with UFD as "Wrenchranger" 4053 | -7/Scraptown | Entered Cyclist Reading Room 4058 | -7/Scraptown | Learned location of Zion (-6) 4131 | -7/Scraptown | Visited Scrapoid Research Area 4415 | -7/Scraptown | Visited Awakened 4512 | -7/Scraptown | Visited Botcube Research 4526 | -7/Scraptown | Found Botcube 4552 | -7/Scraptown | Visited Curators Association 4633 | -7/Scraptown | Visited DA-N13 Charitable Foundation 4644 | -7/Scraptown | Found DCF Scrap (29 items) 4786 | -7/Scraptown | Discovered new exit (range 5) 4844 | -7/Scraptown | Visited Scrapoid Pod Storage 4876 | -7/Scraptown | Visited Research Penetration Think Tank 4910 | -7/Scraptown | Visited Science Testing Area 5449 | -7/Scraptown | Build established: Hauler-Mutant 6441 | -7/Scraptown | Visited Abandonware Association 6479 | -7/Scraptown | Learned abandonware demo "TRNCOAT.EXE" 6479 | -7/Scraptown | Learned abandonware demo "POISON.EXE" 6585 | -7/Scraptown | Visited Infowarlord's Domain 6661 | -7/Scraptown | Visited Science Guys 7952 | -7/Scraptown | Found Exp. Signal Interpreter 8485 | -7/Scraptown | Found Scrapoid Pod 8670 | -7/Scraptown | Found Scrap Suit 8797 | -7/Scraptown | Entered Factory 8797 | -5/Factory | Accompanied by 4 allies 8797 | -5/Factory | Evolved 10 slots: Power x1, Propulsion x2, Utility x5, Weapon x2 8835 | -5/Factory | Self-destructed Last Messages --------------- headers have temporarily been removed, with the sidebars doubling as CYCLE buttons. You can block this behavior by deactivating user/advanced.cfg condenseSlotTypeHeaders. 08832_ Connecting with Garrison Access... 08832_ Current location identified: Factory >>Seal Access door sealed. 08834_ C-30 ARC bursts open, deploying its payload. 08834_ G-67 Veteran unfolds itself. 08834_ G-50 Soldier unfolds itself. 08834_ ALERT: All DSF locations entering lockdown mode. 08834_ Relay Coupler [NC] tumbles out of Garrison Access. 08834_ Relay Coupler [Heavy] tumbles out of Garrison Access. 08834_ Relay Coupler [Grunt] tumbles out of Garrison Access. Map ----- +----------------------------------------------------+ | ?????????????????????????????? | | ?????????????????????????????? | | ?????????????????????????????? | | ?????????????????????????????? | | ?????????????????????????????? | | ?????????????????????????????? | | ?????????????????????????????? | | ?????????????????????????????? | | ?????????????????????????????? | | ?????????????????????????????? | | ?????????????????????????????? | | ?????????????????????????????? | | ?????????????????????????????? | | ?????????????????????????????? | | ?????????????????????????????? | | ?????????????????????????????? | | ?????????????????????????????? | | ?#########?#?????????????????? | | ?# #?????????????????? | | ?# | """ #?????????????????? | | ?# """ #?????#???????????? | | ?# """ #?? #???????????? | | ?# " " g# #???????????? | | ?# "G" ggg +???????????? | | ?# ! g #? #???????????? | | ?# b@ Y # #???????????? | | ?####/###### #???????????? | | ????# #???????????? | | ????# #???????????? | | ????# #???????????? | | ????# i #???????????? | | ????# #???????????? | | ????# ########???????????? | | ????# #??????????????????? | | ????#######??????????????????? | | ?????????????????????????????? | | ?????????????????????????????? | | ?????????????????????????????? | | ?????????????????????????????? | | ?????????????????????????????? | | ?????????????????????????????? | | ?????????????????????????????? | | ?????????????????????????????? | | ?????????????????????????????? | | ?????????????????????????????? | | ?????????????????????????????? | | ?????????????????????????????? | | ?????????????????????????????? | | ?????????????????????????????? | | ?????????????????????????????? | +----------------------------------------------------+ Best States ------------- Heat Dissipation 40 Energy Generation 25 Energy Capacity 330 Matter Stores 450 Matter Capacity 450 Sight Range 16 Robot Scan Range 15 Terrain Scan Density 10 Armor Coverage 800 Evasion (%) 55 Recoil Reduction 2 Defensive Hacking 11 Item Schematics ----------------- Huge Storage Unit | -10/Materials | Hacked Robot Schematics ------------------ None Fabricated ------------ Nothing Alien Tech Used ----------------- None Achievements -------------- None Challenges ------------ None Game ------ Seed VariableBiometalLink Manual? 0 Play Time 01:33:19 Cumulative 238.1 hours Start 2024.08.13 @ 14:23:02 End 2024.08.13 @ 17:05:05 Sessions 3 Manual Loads 0 Difficulty Rogue Special Mode None Game No. 57 Rogue 32 Adventurer 25 Explorer 0 Win Type - Total 18 Types 10/2/1/1/1/0/0/2/1 Lore% 62 Gallery% 72 Achievement% 78 Wizard Run 0 Options --------- Layout 1 ASCII 0 Keyboard 0 Movement Mouse Keybinds 0 Fullscreen 2 Font 32/SmallcapsGlow Map View 50x40 Zoom Use 0% Tactical HUD 1 Map Filters NONE Filters NONE Steam 1 RUN: 190cc76d-1ef2-4aa0-a0f2-9dfe321c6b51